[Event "Titled Tuesday Blitz June 21 Early 2022"]
[White "Kopczynski, Michal"]
[Black "Jia, Haoxiang"]
[WhiteFideId "1124200"]
[BlackFideId "8602999"]
[WhiteElo "2235"]
[BlackElo "2597"]
[Result "0-1"]
[Round "05"]
[TimeControl "180+1"]
[Date "2022.06.22"]
[WhiteClock "0:00:04"]
[BlackClock "0:00:19"]

1. e4 {[%clk 0:03:00]}  c5 {[%clk 0:02:59]} 2. d4 {[%clk 0:03:01]}  cxd4 {[%clk 0:02:59]} 3. c3 {[%clk 0:03:01]}  dxc3 {[%clk 0:02:59]} 4. Nxc3 {[%clk 0:03:02]}  Nc6 {[%clk 0:02:58]} 5. f4 {[%clk 0:03:03]}  d6 {[%clk 0:02:54]} 6. Nf3 {[%clk 0:03:04]}  a6 {[%clk 0:02:53]} 7. Be3 {[%clk 0:03:02]}  Nf6 {[%clk 0:02:48]} 8. Bd3 {[%clk 0:03:01]}  Bg4 {[%clk 0:02:48]} 9. O-O {[%clk 0:03:01]}  e6 {[%clk 0:02:46]} 10. Kh1 {[%clk 0:03:02]}  Be7 {[%clk 0:02:47]} 11. Qe1 {[%clk 0:03:02]}  O-O {[%clk 0:02:35]} 12. Rd1 {[%clk 0:03:02]}  Qc7 {[%clk 0:02:28]} 13. Qg3 {[%clk 0:02:51]}  Bxf3 {[%clk 0:02:12]} 14. Rxf3 {[%clk 0:02:52]}  Rfd8 {[%clk 0:01:55]} 15. Qh3 {[%clk 0:02:46]}  Nb4 {[%clk 0:01:33]} 16. Bb1 {[%clk 0:02:45]}  d5 {[%clk 0:01:33]} 17. e5 {[%clk 0:02:44]}  Ne4 {[%clk 0:01:33]} 18. Rc1 {[%clk 0:02:26]}  Rac8 {[%clk 0:01:27]} 19. Rff1 {[%clk 0:02:06]}  Qa5 {[%clk 0:01:12]} 20. a3 {[%clk 0:01:53]}  Nc6 {[%clk 0:01:10]} 21. Nxe4 {[%clk 0:01:47]}  dxe4 {[%clk 0:01:11]} 22. Bxe4 {[%clk 0:01:47]}  g6 {[%clk 0:01:12]} 23. Qf3 {[%clk 0:01:38]}  Qb5 {[%clk 0:01:08]} 24. Bxc6 {[%clk 0:01:24]}  Rxc6 {[%clk 0:01:07]} 25. Rxc6 {[%clk 0:01:24]}  bxc6 {[%clk 0:01:06]} 26. b4 {[%clk 0:01:00]}  Rd3 {[%clk 0:01:06]} 27. Rd1 {[%clk 0:00:52]}  Rxa3 {[%clk 0:00:59]} 28. f5 {[%clk 0:00:34]}  Qxe5 {[%clk 0:00:55]} 29. fxg6 {[%clk 0:00:30]}  hxg6 {[%clk 0:00:54]} 30. Rf1 {[%clk 0:00:26]}  f5 {[%clk 0:00:52]} 31. Qxc6 {[%clk 0:00:24]}  Rxe3 {[%clk 0:00:41]} 32. Qe8+ {[%clk 0:00:23]}  Bf8 {[%clk 0:00:41]} 33. Qxg6+ {[%clk 0:00:23]}  Qg7 {[%clk 0:00:41]} 34. Qh5 {[%clk 0:00:23]}  Bxb4 {[%clk 0:00:37]} 35. h3 {[%clk 0:00:20]}  Bf8 {[%clk 0:00:32]} 36. Rc1 {[%clk 0:00:17]}  a5 {[%clk 0:00:30]} 37. Qe8 {[%clk 0:00:12]}  Re2 {[%clk 0:00:28]} 38. Rg1 {[%clk 0:00:10]}  Qf7 {[%clk 0:00:24]} 39. Qc6 {[%clk 0:00:09]}  Qf6 {[%clk 0:00:19]} 40. Rf1 {[%clk 0:00:09]}  Qe5 {[%clk 0:00:18]} 41. Qf3 {[%clk 0:00:06]}  Re1 {[%clk 0:00:18]} 42. h4 {[%clk 0:00:06]}  Rxf1+ {[%clk 0:00:18]} 43. Qxf1 {[%clk 0:00:06]}  a4 {[%clk 0:00:18]} 44. Qd1 {[%clk 0:00:04]}  a3 {[%clk 0:00:18]} 45. Qb1 {[%clk 0:00:04]}  Qe4 {[%clk 0:00:18]} 46. Qa2 {[%clk 0:00:03]}  Qxh4+ {[%clk 0:00:18]} 47. Kg1 {[%clk 0:00:04]}  Qe1+ {[%clk 0:00:18]} 48. Kh2 {[%clk 0:00:04]}  Bd6+ {[%clk 0:00:19]} 49. Kh3 {[%clk 0:00:04]}  Qg3# {[%clk 0:00:19]} 0-1


[Site "https://www.chess.com"]

[Event "Titled Tuesday Blitz June 21 Early 2022"]
[White "Kowalysko, Roman"]
[Black "Sovetbekova, Nurai"]
[WhiteFideId "30918510"]
[BlackFideId "13801910"]
[WhiteElo "2111"]
[BlackElo "1646"]
[Result "1-0"]
[Round "05"]
[TimeControl "180+1"]
[Date "2022.06.22"]
[WhiteClock "0:00:16"]
[BlackClock "0:00:07"]

1. e4 {[%clk 0:03:00]}  c5 {[%clk 0:02:59]} 2. Nf3 {[%clk 0:02:57]}  d6 {[%clk 0:02:58]} 3. d4 {[%clk 0:02:57]}  cxd4 {[%clk 0:02:59]} 4. Nxd4 {[%clk 0:02:56]}  Nf6 {[%clk 0:02:56]} 5. Nc3 {[%clk 0:02:56]}  a6 {[%clk 0:02:56]} 6. Bg5 {[%clk 0:02:56]}  e6 {[%clk 0:02:56]} 7. f4 {[%clk 0:02:55]}  Be7 {[%clk 0:02:55]} 8. Qf3 {[%clk 0:02:54]}  Qc7 {[%clk 0:02:49]} 9. O-O-O {[%clk 0:02:52]}  Nbd7 {[%clk 0:02:39]} 10. Qg3 {[%clk 0:02:51]}  h6 {[%clk 0:02:27]} 11. Bh4 {[%clk 0:02:48]}  Nh5 {[%clk 0:02:19]} 12. Nxe6 {[%clk 0:02:40]}  fxe6 {[%clk 0:02:08]} 13. Qg6+ {[%clk 0:02:31]}  Kf8 {[%clk 0:02:08]} 14. Qxh5 {[%clk 0:02:31]}  Nf6 {[%clk 0:02:00]} 15. Qg6 {[%clk 0:02:29]}  Bd7 {[%clk 0:01:54]} 16. e5 {[%clk 0:02:27]}  dxe5 {[%clk 0:01:48]} 17. fxe5 {[%clk 0:02:27]}  Be8 {[%clk 0:01:47]} 18. Qg3 {[%clk 0:02:25]}  Nh5 {[%clk 0:01:35]} 19. Bxe7+ {[%clk 0:02:24]}  Qxe7 {[%clk 0:01:33]} 20. Qf3+ {[%clk 0:02:24]}  Kg8 {[%clk 0:01:32]} 21. Bc4 {[%clk 0:02:12]}  b5 {[%clk 0:01:29]} 22. Qxa8 {[%clk 0:02:05]}  bxc4 {[%clk 0:01:24]} 23. Rd8 {[%clk 0:01:59]}  Kh7 {[%clk 0:01:22]} 24. Kb1 {[%clk 0:01:44]}  Nf4 {[%clk 0:01:12]} 25. g3 {[%clk 0:01:38]}  Ng6 {[%clk 0:01:06]} 26. Re1 {[%clk 0:01:34]}  Bb5 {[%clk 0:00:50]} 27. Rxh8+ {[%clk 0:01:32]}  Nxh8 {[%clk 0:00:51]} 28. Nxb5 {[%clk 0:01:30]}  axb5 {[%clk 0:00:49]} 29. Qe4+ {[%clk 0:01:28]}  Ng6 {[%clk 0:00:43]} 30. h4 {[%clk 0:01:26]}  h5 {[%clk 0:00:42]} 31. g4 {[%clk 0:01:24]}  Kh6 {[%clk 0:00:40]} 32. g5+ {[%clk 0:01:14]}  Kh7 {[%clk 0:00:38]} 33. a3 {[%clk 0:01:14]}  b4 {[%clk 0:00:32]} 34. axb4 {[%clk 0:01:10]}  Qxb4 {[%clk 0:00:32]} 35. Rd1 {[%clk 0:01:08]}  Qb5 {[%clk 0:00:28]} 36. c3 {[%clk 0:00:42]}  Qxe5 {[%clk 0:00:19]} 37. Qxe5 {[%clk 0:00:39]}  Nxe5 {[%clk 0:00:20]} 38. Re1 {[%clk 0:00:38]}  Nf3 {[%clk 0:00:20]} 39. Rxe6 {[%clk 0:00:33]}  Nxh4 {[%clk 0:00:20]} 40. Re4 {[%clk 0:00:33]}  Nf3 {[%clk 0:00:19]} 41. Rxc4 {[%clk 0:00:32]}  Nxg5 {[%clk 0:00:19]} 42. Rh4 {[%clk 0:00:28]}  Kg6 {[%clk 0:00:18]} 43. b4 {[%clk 0:00:28]}  Nf3 {[%clk 0:00:18]} 44. Rh3 {[%clk 0:00:25]}  Ng5 {[%clk 0:00:12]} 45. Rh1 {[%clk 0:00:23]}  Kf5 {[%clk 0:00:10]} 46. b5 {[%clk 0:00:22]}  Ne4 {[%clk 0:00:11]} 47. Kc2 {[%clk 0:00:19]}  Nd6 {[%clk 0:00:10]} 48. Rxh5+ {[%clk 0:00:19]}  Kg4 {[%clk 0:00:09]} 49. Rd5 {[%clk 0:00:19]}  Nb7 {[%clk 0:00:07]} 50. Rd7 {[%clk 0:00:16]}  Nc5 {[%clk 0:00:07]} 51. Rxg7+ {[%clk 0:00:16]} 1-0


[Site "https://www.chess.com"]

[Event "Titled Tuesday Blitz June 21 Early 2022"]
[White "Kozlov, Oleg"]
[Black "Legenia, Artem"]
[WhiteFideId "4104544"]
[BlackFideId "14136945"]
[WhiteElo "2132"]
[BlackElo "1936"]
[Result "1-0"]
[Round "05"]
[TimeControl "180+1"]
[Date "2022.06.22"]
[WhiteClock "0:01:19"]
[BlackClock "0:00:41"]

1. d4 {[%clk 0:02:56]}  d5 {[%clk 0:02:57]} 2. c4 {[%clk 0:02:55]}  e6 {[%clk 0:02:56]} 3. Nf3 {[%clk 0:02:56]}  c5 {[%clk 0:02:52]} 4. cxd5 {[%clk 0:02:49]}  exd5 {[%clk 0:02:51]} 5. g3 {[%clk 0:02:50]}  Nf6 {[%clk 0:02:50]} 6. Bg2 {[%clk 0:02:50]}  Nc6 {[%clk 0:02:51]} 7. O-O {[%clk 0:02:51]}  cxd4 {[%clk 0:02:46]} 8. Nxd4 {[%clk 0:02:50]}  Be7 {[%clk 0:02:46]} 9. Nc3 {[%clk 0:02:51]}  O-O {[%clk 0:02:46]} 10. Bg5 {[%clk 0:02:51]}  h6 {[%clk 0:02:39]} 11. Bf4 {[%clk 0:02:35]}  Qb6 {[%clk 0:02:32]} 12. Nb3 {[%clk 0:02:29]}  Be6 {[%clk 0:02:29]} 13. Be3 {[%clk 0:02:26]}  Qd8 {[%clk 0:02:26]} 14. Nb5 {[%clk 0:02:23]}  a6 {[%clk 0:02:15]} 15. N5d4 {[%clk 0:02:16]}  Nxd4 {[%clk 0:02:11]} 16. Nxd4 {[%clk 0:02:16]}  Rc8 {[%clk 0:02:07]} 17. Qb3 {[%clk 0:02:13]}  b5 {[%clk 0:02:05]} 18. Bd2 {[%clk 0:02:09]}  Rc4 {[%clk 0:02:02]} 19. e3 {[%clk 0:02:07]}  Nd7 {[%clk 0:01:59]} 20. Rfc1 {[%clk 0:01:54]}  Nc5 {[%clk 0:01:56]} 21. Qd1 {[%clk 0:01:52]}  Nd3 {[%clk 0:01:53]} 22. Rc2 {[%clk 0:01:49]}  Qc7 {[%clk 0:01:46]} 23. Bc3 {[%clk 0:01:42]}  Ne5 {[%clk 0:01:32]} 24. Bf1 {[%clk 0:01:41]}  Rc5 {[%clk 0:01:11]} 25. Rac1 {[%clk 0:01:36]}  Rc8 {[%clk 0:01:02]} 26. Nb3 {[%clk 0:01:31]}  Rxc3 {[%clk 0:00:56]} 27. Rxc3 {[%clk 0:01:28]}  Nc4 {[%clk 0:00:56]} 28. Nd4 {[%clk 0:01:24]}  Nxb2 {[%clk 0:00:41]} 29. Rxc7 {[%clk 0:01:20]}  Nxd1 {[%clk 0:00:41]} 30. Rxc8+ {[%clk 0:01:19]} 1-0


[Site "https://www.chess.com"]

[Event "Titled Tuesday Blitz June 21 Early 2022"]
[White "Lagno, Kateryna"]
[Black "Perez Leiva, Jerzy Jesus"]
[WhiteFideId "14109336"]
[BlackFideId "3524337"]
[WhiteElo "2522"]
[BlackElo "2287"]
[Result "1-0"]
[Round "05"]
[TimeControl "180+1"]
[Date "2022.06.22"]
[WhiteClock "0:00:36"]
[BlackClock "0:00:01"]

1. e4 {[%clk 0:02:55]}  c5 {[%clk 0:02:58]} 2. Nf3 {[%clk 0:02:55]}  d6 {[%clk 0:02:58]} 3. d4 {[%clk 0:02:56]}  cxd4 {[%clk 0:02:57]} 4. Nxd4 {[%clk 0:02:57]}  Nf6 {[%clk 0:02:57]} 5. Nc3 {[%clk 0:02:58]}  a6 {[%clk 0:02:58]} 6. Be3 {[%clk 0:02:58]}  e5 {[%clk 0:02:57]} 7. Nf3 {[%clk 0:02:58]}  Be7 {[%clk 0:02:51]} 8. Nd2 {[%clk 0:02:55]}  Qc7 {[%clk 0:02:30]} 9. Nc4 {[%clk 0:02:53]}  Nbd7 {[%clk 0:02:30]} 10. a4 {[%clk 0:02:52]}  b6 {[%clk 0:02:29]} 11. Be2 {[%clk 0:02:35]}  Bb7 {[%clk 0:02:28]} 12. f3 {[%clk 0:02:36]}  O-O {[%clk 0:02:23]} 13. O-O {[%clk 0:02:36]}  Rfd8 {[%clk 0:01:55]} 14. Qd2 {[%clk 0:02:35]}  Rac8 {[%clk 0:01:13]} 15. Rfd1 {[%clk 0:02:34]}  d5 {[%clk 0:01:13]} 16. Nxd5 {[%clk 0:02:28]}  Nxd5 {[%clk 0:01:12]} 17. exd5 {[%clk 0:02:28]}  Bc5 {[%clk 0:01:05]} 18. d6 {[%clk 0:02:24]}  Qc6 {[%clk 0:00:56]} 19. c3 {[%clk 0:02:23]}  Ba8 {[%clk 0:00:24]} 20. b4 {[%clk 0:02:15]}  Bxe3+ {[%clk 0:00:21]} 21. Qxe3 {[%clk 0:02:16]}  e4 {[%clk 0:00:16]} 22. fxe4 {[%clk 0:02:10]}  Re8 {[%clk 0:00:12]} 23. Bd3 {[%clk 0:02:02]}  b5 {[%clk 0:00:10]} 24. axb5 {[%clk 0:02:02]}  axb5 {[%clk 0:00:11]} 25. Na5 {[%clk 0:01:44]}  Qxc3 {[%clk 0:00:10]} 26. Qd2 {[%clk 0:01:35]}  Qd4+ {[%clk 0:00:10]} 27. Kh1 {[%clk 0:01:35]}  Bxe4 {[%clk 0:00:09]} 28. Bxb5 {[%clk 0:01:33]}  Qxd2 {[%clk 0:00:03]} 29. Rxd2 {[%clk 0:01:34]}  Bf5 {[%clk 0:00:03]} 30. Nc6 {[%clk 0:01:32]}  Kf8 {[%clk 0:00:01]} 31. Ne7 {[%clk 0:01:33]}  Rb8 {[%clk 0:00:01]} 32. Bc6 {[%clk 0:01:31]}  Be6 {[%clk 0:00:02]} 33. b5 {[%clk 0:01:31]}  Red8 {[%clk 0:00:01]} 34. h3 {[%clk 0:01:18]}  Nc5 {[%clk 0:00:02]} 35. Ra7 {[%clk 0:01:13]}  Nb3 {[%clk 0:00:01]} 36. Rf2 {[%clk 0:01:13]}  Nd4 {[%clk 0:00:01]} 37. Nd5 {[%clk 0:00:43]}  f6 {[%clk 0:00:01]} 38. d7 {[%clk 0:00:36]} 1-0


[Site "https://www.chess.com"]

[Event "Titled Tuesday Blitz June 21 Early 2022"]
[White "Lashkin, Jegor"]
[Black "Cunha, Lucas Aguiar"]
[WhiteFideId "13907808"]
[BlackFideId "2125404"]
[WhiteElo "2368"]
[BlackElo "2328"]
[Result "1-0"]
[Round "05"]
[TimeControl "180+1"]
[Date "2022.06.21"]
[WhiteClock "0:00:23"]
[BlackClock "0:00:03"]

1. d4 {[%clk 0:03:00]}  Nf6 {[%clk 0:02:59]} 2. c4 {[%clk 0:03:01]}  e6 {[%clk 0:02:59]} 3. Nf3 {[%clk 0:03:01]}  b6 {[%clk 0:02:58]} 4. a3 {[%clk 0:03:00]}  c5 {[%clk 0:02:55]} 5. d5 {[%clk 0:03:00]}  exd5 {[%clk 0:02:56]} 6. cxd5 {[%clk 0:03:01]}  g6 {[%clk 0:02:56]} 7. Nc3 {[%clk 0:03:01]}  d6 {[%clk 0:02:54]} 8. e4 {[%clk 0:03:01]}  Bg7 {[%clk 0:02:55]} 9. Bd3 {[%clk 0:02:59]}  O-O {[%clk 0:02:53]} 10. h3 {[%clk 0:02:58]}  Ba6 {[%clk 0:02:52]} 11. O-O {[%clk 0:02:58]}  Re8 {[%clk 0:02:51]} 12. Bf4 {[%clk 0:02:57]}  Bf8 {[%clk 0:02:41]} 13. Re1 {[%clk 0:02:57]}  Bxd3 {[%clk 0:02:39]} 14. Qxd3 {[%clk 0:02:57]}  Nbd7 {[%clk 0:02:40]} 15. Nb5 {[%clk 0:02:57]}  Qb8 {[%clk 0:02:39]} 16. a4 {[%clk 0:02:51]}  a6 {[%clk 0:02:38]} 17. Na3 {[%clk 0:02:49]}  Qc7 {[%clk 0:02:20]} 18. Rac1 {[%clk 0:02:45]}  Nh5 {[%clk 0:02:02]} 19. Bh2 {[%clk 0:02:45]}  Bh6 {[%clk 0:02:02]} 20. Nc4 {[%clk 0:02:36]}  Bf4 {[%clk 0:01:52]} 21. Bxf4 {[%clk 0:02:33]}  Nxf4 {[%clk 0:01:53]} 22. Qd2 {[%clk 0:02:33]}  Nh5 {[%clk 0:01:50]} 23. e5 {[%clk 0:02:27]}  dxe5 {[%clk 0:01:43]} 24. d6 {[%clk 0:02:26]}  Qd8 {[%clk 0:01:33]} 25. Nfxe5 {[%clk 0:02:25]}  Nhf6 {[%clk 0:01:27]} 26. Nc6 {[%clk 0:02:24]}  Rxe1+ {[%clk 0:01:22]} 27. Rxe1 {[%clk 0:02:25]}  Qf8 {[%clk 0:01:23]} 28. Qf4 {[%clk 0:02:06]}  b5 {[%clk 0:01:17]} 29. Ne7+ {[%clk 0:02:04]}  Kh8 {[%clk 0:01:10]} 30. Ne5 {[%clk 0:02:05]}  Qg7 {[%clk 0:00:52]} 31. Qf3 {[%clk 0:01:52]}  Rb8 {[%clk 0:00:44]} 32. Nxd7 {[%clk 0:01:46]}  Nxd7 {[%clk 0:00:45]} 33. Qc6 {[%clk 0:01:47]}  Nf8 {[%clk 0:00:45]} 34. Qc7 {[%clk 0:01:42]}  Ra8 {[%clk 0:00:41]} 35. d7 {[%clk 0:01:12]}  Qd4 {[%clk 0:00:33]} 36. Qc8 {[%clk 0:00:57]}  Qd2 {[%clk 0:00:24]} 37. Re3 {[%clk 0:00:43]}  Qd1+ {[%clk 0:00:21]} 38. Kh2 {[%clk 0:00:44]}  Qd6+ {[%clk 0:00:21]} 39. g3 {[%clk 0:00:42]}  Qd2 {[%clk 0:00:10]} 40. Qxa8 {[%clk 0:00:31]}  Qxf2+ {[%clk 0:00:09]} 41. Qg2 {[%clk 0:00:31]}  Qxe3 {[%clk 0:00:08]} 42. d8=Q {[%clk 0:00:31]}  Kg7 {[%clk 0:00:05]} 43. Nd5 {[%clk 0:00:30]}  Qe5 {[%clk 0:00:04]} 44. axb5 {[%clk 0:00:25]}  axb5 {[%clk 0:00:04]} 45. Qc7 {[%clk 0:00:24]}  Qe6 {[%clk 0:00:03]} 46. Qxc5 {[%clk 0:00:23]} 1-0


[Site "https://www.chess.com"]

[Event "Titled Tuesday Blitz June 21 Early 2022"]
[White "Lauridsen, Jesper Morch"]
[Black "Joubert, Dantelle"]
[WhiteFideId "1401890"]
[BlackFideId "14310813"]
[WhiteElo "2206"]
[BlackElo "1507"]
[Result "1-0"]
[Round "05"]
[TimeControl "180+1"]
[Date "2022.06.22"]
[WhiteClock "0:00:37"]
[BlackClock "0:00:11"]

1. e3 {[%clk 0:03:00]}  d5 {[%clk 0:02:46]} 2. c4 {[%clk 0:03:00]}  e6 {[%clk 0:02:45]} 3. Nc3 {[%clk 0:02:59]}  Nf6 {[%clk 0:02:45]} 4. d4 {[%clk 0:02:59]}  Be7 {[%clk 0:02:44]} 5. Nf3 {[%clk 0:02:58]}  O-O {[%clk 0:02:43]} 6. Bd3 {[%clk 0:02:57]}  c5 {[%clk 0:02:43]} 7. O-O {[%clk 0:02:48]}  Nc6 {[%clk 0:02:41]} 8. dxc5 {[%clk 0:02:45]}  dxc4 {[%clk 0:02:38]} 9. Bxc4 {[%clk 0:02:43]}  Bxc5 {[%clk 0:02:38]} 10. a3 {[%clk 0:02:40]}  a5 {[%clk 0:02:32]} 11. Qe2 {[%clk 0:02:39]}  Qe7 {[%clk 0:02:31]} 12. b3 {[%clk 0:02:32]}  e5 {[%clk 0:02:28]} 13. Bb2 {[%clk 0:02:30]}  e4 {[%clk 0:02:24]} 14. Nd2 {[%clk 0:02:03]}  Bg4 {[%clk 0:02:20]} 15. Nd5 {[%clk 0:02:02]}  Qd7 {[%clk 0:01:37]} 16. Nxf6+ {[%clk 0:01:59]}  gxf6 {[%clk 0:01:37]} 17. f3 {[%clk 0:01:59]}  exf3 {[%clk 0:01:27]} 18. gxf3 {[%clk 0:01:57]}  Bh3 {[%clk 0:01:24]} 19. Ne4 {[%clk 0:01:44]}  Be7 {[%clk 0:01:13]} 20. Rfd1 {[%clk 0:01:42]}  Qf5 {[%clk 0:01:08]} 21. Rd5 {[%clk 0:01:35]}  Qg6+ {[%clk 0:01:00]} 22. Kh1 {[%clk 0:01:34]}  Kh8 {[%clk 0:00:56]} 23. Rg1 {[%clk 0:01:32]}  Qh6 {[%clk 0:00:54]} 24. f4 {[%clk 0:01:19]}  Rg8 {[%clk 0:00:40]} 25. Rh5 {[%clk 0:01:14]}  Rxg1+ {[%clk 0:00:39]} 26. Kxg1 {[%clk 0:01:14]}  Qg7+ {[%clk 0:00:35]} 27. Ng5 {[%clk 0:01:07]}  Bf5 {[%clk 0:00:26]} 28. Qg2 {[%clk 0:00:46]}  Bc5 {[%clk 0:00:16]} 29. Nxf7+ {[%clk 0:00:41]}  Qxf7 {[%clk 0:00:11]} 30. Bxf7 {[%clk 0:00:37]} 1-0


[Site "https://www.chess.com"]

[Event "Titled Tuesday Blitz June 21 Early 2022"]
[White "Li, Zhuoling"]
[Black "Vusatiuk, Vladimir"]
[WhiteFideId "8605629"]
[BlackFideId "14118610"]
[WhiteElo "2308"]
[BlackElo "2157"]
[Result "0-1"]
[Round "05"]
[TimeControl "180+1"]
[Date "2022.06.22"]
[WhiteClock "0:00:04"]
[BlackClock "0:00:49"]

1. e4 {[%clk 0:02:59]}  e6 {[%clk 0:02:54]} 2. d4 {[%clk 0:02:59]}  d5 {[%clk 0:02:55]} 3. e5 {[%clk 0:02:59]}  c5 {[%clk 0:02:54]} 4. c3 {[%clk 0:02:59]}  Nc6 {[%clk 0:02:55]} 5. Nf3 {[%clk 0:02:58]}  Nge7 {[%clk 0:02:56]} 6. Bd3 {[%clk 0:02:54]}  Nf5 {[%clk 0:02:55]} 7. Bxf5 {[%clk 0:02:52]}  exf5 {[%clk 0:02:55]} 8. O-O {[%clk 0:02:51]}  cxd4 {[%clk 0:02:55]} 9. cxd4 {[%clk 0:02:51]}  Be7 {[%clk 0:02:50]} 10. Nc3 {[%clk 0:02:49]}  h6 {[%clk 0:02:46]} 11. Re1 {[%clk 0:02:22]}  Be6 {[%clk 0:02:44]} 12. b3 {[%clk 0:02:08]}  g5 {[%clk 0:02:36]} 13. Qd3 {[%clk 0:01:50]}  Qd7 {[%clk 0:02:21]} 14. Bb2 {[%clk 0:01:43]}  g4 {[%clk 0:02:18]} 15. Nd2 {[%clk 0:01:39]}  f4 {[%clk 0:02:19]} 16. Nb5 {[%clk 0:01:23]}  f3 {[%clk 0:02:05]} 17. a4 {[%clk 0:01:12]}  fxg2 {[%clk 0:02:04]} 18. Nd6+ {[%clk 0:01:10]}  Bxd6 {[%clk 0:02:04]} 19. exd6 {[%clk 0:01:10]}  Qxd6 {[%clk 0:02:04]} 20. Ba3 {[%clk 0:01:08]}  Qf4 {[%clk 0:02:03]} 21. Bb2 {[%clk 0:00:47]}  h5 {[%clk 0:01:59]} 22. Rad1 {[%clk 0:00:29]}  h4 {[%clk 0:01:59]} 23. Qe3 {[%clk 0:00:25]}  Qd6 {[%clk 0:01:52]} 24. Qg5 {[%clk 0:00:19]}  Kd7 {[%clk 0:01:32]} 25. Nb1 {[%clk 0:00:18]}  Rag8 {[%clk 0:01:28]} 26. Qe3 {[%clk 0:00:15]}  g3 {[%clk 0:01:26]} 27. hxg3 {[%clk 0:00:13]}  hxg3 {[%clk 0:01:26]} 28. f4 {[%clk 0:00:13]}  Rh2 {[%clk 0:01:01]} 29. Nc3 {[%clk 0:00:12]}  Bh3 {[%clk 0:01:01]} 30. Qxg3 {[%clk 0:00:07]}  Rxg3 {[%clk 0:00:55]} 31. Kxh2 {[%clk 0:00:07]}  Qxf4 {[%clk 0:00:54]} 32. Nxd5 {[%clk 0:00:06]}  g1=Q+ {[%clk 0:00:47]} 33. Rxg1 {[%clk 0:00:05]}  Rg2+ {[%clk 0:00:48]} 34. Kxh3 {[%clk 0:00:04]}  Qh2# {[%clk 0:00:49]} 0-1


[Site "https://www.chess.com"]

[Event "Titled Tuesday Blitz June 21 Early 2022"]
[White "Makarian, Rudik"]
[Black "Przybylski, Wojciech"]
[WhiteFideId "44105681"]
[BlackFideId "1117599"]
[WhiteElo "2398"]
[BlackElo "2133"]
[Result "1-0"]
[Round "05"]
[TimeControl "180+1"]
[Date "2022.06.21"]
[WhiteClock "0:01:05"]
[BlackClock "0:00:03"]

1. d3 {[%clk 0:03:00]}  e5 {[%clk 0:02:55]} 2. e4 {[%clk 0:02:58]}  Nc6 {[%clk 0:02:53]} 3. Nf3 {[%clk 0:02:59]}  Nf6 {[%clk 0:02:51]} 4. Be2 {[%clk 0:02:57]}  Be7 {[%clk 0:02:50]} 5. O-O {[%clk 0:02:53]}  O-O {[%clk 0:02:49]} 6. c3 {[%clk 0:02:54]}  d5 {[%clk 0:02:49]} 7. Nbd2 {[%clk 0:02:55]}  Re8 {[%clk 0:02:48]} 8. b4 {[%clk 0:02:53]}  a6 {[%clk 0:02:47]} 9. Bb2 {[%clk 0:02:52]}  Bf8 {[%clk 0:02:46]} 10. a4 {[%clk 0:02:53]}  d4 {[%clk 0:02:35]} 11. b5 {[%clk 0:02:52]}  dxc3 {[%clk 0:02:22]} 12. Bxc3 {[%clk 0:02:52]}  Nd4 {[%clk 0:02:21]} 13. Bxd4 {[%clk 0:02:39]}  exd4 {[%clk 0:02:21]} 14. Nb3 {[%clk 0:02:36]}  Bb4 {[%clk 0:02:20]} 15. e5 {[%clk 0:02:11]}  Ng4 {[%clk 0:02:11]} 16. Nfxd4 {[%clk 0:02:09]}  Nxe5 {[%clk 0:02:08]} 17. Qc2 {[%clk 0:02:05]}  Ng6 {[%clk 0:02:02]} 18. Bf3 {[%clk 0:02:01]}  Nh4 {[%clk 0:01:55]} 19. Be4 {[%clk 0:02:00]}  Bd6 {[%clk 0:01:42]} 20. g3 {[%clk 0:02:00]}  Ng6 {[%clk 0:01:27]} 21. f4 {[%clk 0:02:00]}  Qf6 {[%clk 0:01:08]} 22. Rae1 {[%clk 0:01:53]}  Bh3 {[%clk 0:01:04]} 23. Bg2 {[%clk 0:01:49]}  Bxg2 {[%clk 0:01:03]} 24. Kxg2 {[%clk 0:01:49]}  h5 {[%clk 0:00:36]} 25. bxa6 {[%clk 0:01:40]}  bxa6 {[%clk 0:00:34]} 26. Qc6 {[%clk 0:01:41]}  Red8 {[%clk 0:00:25]} 27. Re4 {[%clk 0:01:37]}  h4 {[%clk 0:00:24]} 28. Rfe1 {[%clk 0:01:38]}  Bf8 {[%clk 0:00:16]} 29. Qxf6 {[%clk 0:01:32]}  gxf6 {[%clk 0:00:17]} 30. Rd1 {[%clk 0:01:27]}  hxg3 {[%clk 0:00:15]} 31. hxg3 {[%clk 0:01:27]}  Rd5 {[%clk 0:00:13]} 32. Nc2 {[%clk 0:01:21]}  Rad8 {[%clk 0:00:13]} 33. d4 {[%clk 0:01:16]}  c5 {[%clk 0:00:12]} 34. Ne3 {[%clk 0:01:11]}  f5 {[%clk 0:00:06]} 35. Nxd5 {[%clk 0:01:09]}  fxe4 {[%clk 0:00:06]} 36. dxc5 {[%clk 0:01:10]}  Kg7 {[%clk 0:00:02]} 37. c6 {[%clk 0:01:05]}  f5 {[%clk 0:00:02]} 38. c7 {[%clk 0:01:04]}  Rc8 {[%clk 0:00:02]} 39. Nd4 {[%clk 0:01:04]}  Bd6 {[%clk 0:00:02]} 40. Nxf5+ {[%clk 0:01:04]}  Kf7 {[%clk 0:00:03]} 41. Nxd6+ {[%clk 0:01:05]} 1-0


[Site "https://www.chess.com"]

[Event "Titled Tuesday Blitz June 21 Early 2022"]
[White "Manukian, Artak"]
[Black "Domingo Nunez, Ruben"]
[WhiteFideId "13301373"]
[BlackFideId "22245570"]
[WhiteElo "2471"]
[BlackElo "2376"]
[Result "0-1"]
[Round "05"]
[TimeControl "180+1"]
[Date "2022.06.22"]
[WhiteClock "0:00:06"]
[BlackClock "0:00:42"]

1. e4 {[%clk 0:03:00]}  g6 {[%clk 0:02:59]} 2. d4 {[%clk 0:03:00]}  Bg7 {[%clk 0:03:00]} 3. c4 {[%clk 0:03:00]}  c6 {[%clk 0:03:01]} 4. Nc3 {[%clk 0:03:00]}  e6 {[%clk 0:03:01]} 5. Nf3 {[%clk 0:02:45]}  d5 {[%clk 0:03:01]} 6. e5 {[%clk 0:02:41]}  Ne7 {[%clk 0:02:58]} 7. Bg5 {[%clk 0:02:36]}  h6 {[%clk 0:02:57]} 8. Bh4 {[%clk 0:02:36]}  g5 {[%clk 0:02:58]} 9. Bg3 {[%clk 0:02:36]}  Nf5 {[%clk 0:02:58]} 10. Bd3 {[%clk 0:02:31]}  dxc4 {[%clk 0:02:56]} 11. Bxc4 {[%clk 0:02:17]}  g4 {[%clk 0:02:56]} 12. Nd2 {[%clk 0:02:15]}  Qxd4 {[%clk 0:02:53]} 13. O-O {[%clk 0:02:11]}  h5 {[%clk 0:02:48]} 14. Ne2 {[%clk 0:02:03]}  Qc5 {[%clk 0:02:37]} 15. Rc1 {[%clk 0:01:57]}  Qb4 {[%clk 0:02:24]} 16. Ne4 {[%clk 0:01:48]}  b5 {[%clk 0:02:05]} 17. Bd3 {[%clk 0:01:35]}  Nd7 {[%clk 0:01:41]} 18. Rxc6 {[%clk 0:01:04]}  Nxe5 {[%clk 0:01:13]} 19. Bxe5 {[%clk 0:00:51]}  Bxe5 {[%clk 0:01:13]} 20. N4c3 {[%clk 0:00:32]}  Bb7 {[%clk 0:01:02]} 21. Bxb5 {[%clk 0:00:31]}  O-O {[%clk 0:01:03]} 22. Rc4 {[%clk 0:00:31]}  Qxb2 {[%clk 0:01:01]} 23. Ba4 {[%clk 0:00:20]}  Rfd8 {[%clk 0:00:50]} 24. Qe1 {[%clk 0:00:18]}  Ba6 {[%clk 0:00:41]} 25. Re4 {[%clk 0:00:07]}  Bxc3 {[%clk 0:00:42]} 26. Nxc3 {[%clk 0:00:06]}  Bxf1 {[%clk 0:00:42]} 0-1


[Site "https://www.chess.com"]